[Event "Titled Tuesday Blitz February 15 Early 2022"]
[White "Sadhwani, Raunak"]
[Black "Ankerst, Mihael"]
[WhiteFideId "35093487"]
[BlackFideId "14602369"]
[WhiteElo "2616"]
[BlackElo "2281"]
[Result "1-0"]
[Round "04"]
[TimeControl "180+1"]
[Date "2022.02.15"]
[WhiteClock "0:01:42"]
[BlackClock "0:00:11"]

1. e4 {[%clk 0:03:00]}  c5 {[%clk 0:02:54]} 2. Nc3 {[%clk 0:03:01]}  Nc6 {[%clk 0:02:53]} 3. Nf3 {[%clk 0:03:02]}  Qb6 {[%clk 0:02:54]} 4. Nd5 {[%clk 0:03:01]}  Qa5 {[%clk 0:02:53]} 5. c3 {[%clk 0:02:57]}  e6 {[%clk 0:02:50]} 6. Nf4 {[%clk 0:02:57]}  Be7 {[%clk 0:02:51]} 7. Be2 {[%clk 0:02:54]}  d6 {[%clk 0:02:48]} 8. O-O {[%clk 0:02:54]}  Nf6 {[%clk 0:02:48]} 9. d3 {[%clk 0:02:53]}  Bd7 {[%clk 0:02:48]} 10. a3 {[%clk 0:02:53]}  a6 {[%clk 0:02:47]} 11. Be3 {[%clk 0:02:50]}  O-O {[%clk 0:02:45]} 12. b4 {[%clk 0:02:50]}  Qc7 {[%clk 0:02:40]} 13. Qb1 {[%clk 0:02:46]}  b5 {[%clk 0:02:34]} 14. d4 {[%clk 0:02:46]}  cxd4 {[%clk 0:02:33]} 15. cxd4 {[%clk 0:02:47]}  d5 {[%clk 0:02:33]} 16. e5 {[%clk 0:02:45]}  Ne4 {[%clk 0:02:33]} 17. Rc1 {[%clk 0:02:45]}  Qb6 {[%clk 0:02:34]} 18. Nd3 {[%clk 0:02:45]}  a5 {[%clk 0:02:29]} 19. Nc5 {[%clk 0:02:45]}  Rfd8 {[%clk 0:02:20]} 20. Nxe4 {[%clk 0:02:43]}  dxe4 {[%clk 0:02:20]} 21. d5 {[%clk 0:02:44]}  Qa6 {[%clk 0:02:14]} 22. dxc6 {[%clk 0:02:43]}  exf3 {[%clk 0:02:14]} 23. Bxf3 {[%clk 0:02:43]}  Be8 {[%clk 0:02:10]} 24. c7 {[%clk 0:02:43]}  Rdc8 {[%clk 0:02:10]} 25. Bxa8 {[%clk 0:02:42]}  Qxa8 {[%clk 0:02:09]} 26. Qd3 {[%clk 0:02:37]}  h6 {[%clk 0:02:01]} 27. h3 {[%clk 0:02:34]}  Bc6 {[%clk 0:02:01]} 28. Rxc6 {[%clk 0:02:08]}  Qxc6 {[%clk 0:02:00]} 29. Rc1 {[%clk 0:02:09]}  Qa6 {[%clk 0:01:55]} 30. Qd7 {[%clk 0:02:09]}  Bf8 {[%clk 0:01:53]} 31. Rc6 {[%clk 0:02:06]}  Qa8 {[%clk 0:01:44]} 32. bxa5 {[%clk 0:01:51]}  Bxa3 {[%clk 0:01:45]} 33. Rb6 {[%clk 0:01:49]}  Bf8 {[%clk 0:01:13]} 34. a6 {[%clk 0:01:40]}  b4 {[%clk 0:01:00]} 35. a7 {[%clk 0:01:39]}  Qxa7 {[%clk 0:01:00]} 36. Qxc8 {[%clk 0:01:38]}  Qa1+ {[%clk 0:00:55]} 37. Kh2 {[%clk 0:01:38]}  Qxe5+ {[%clk 0:00:50]} 38. g3 {[%clk 0:01:39]}  Qc3 {[%clk 0:00:19]} 39. Rb8 {[%clk 0:01:38]}  Kh7 {[%clk 0:00:13]} 40. Qxf8 {[%clk 0:01:38]}  Qxc7 {[%clk 0:00:13]} 41. Qh8+ {[%clk 0:01:37]}  Kg6 {[%clk 0:00:13]} 42. Rg8 {[%clk 0:01:38]}  Qc3 {[%clk 0:00:12]} 43. Qxh6+ {[%clk 0:01:37]}  Kf5 {[%clk 0:00:11]} 44. Rxg7 {[%clk 0:01:38]}  Ke4 {[%clk 0:00:10]} 45. Qf4+ {[%clk 0:01:38]}  Kd3 {[%clk 0:00:11]} 46. Rxf7 {[%clk 0:01:39]}  b3 {[%clk 0:00:10]} 47. Rd7+ {[%clk 0:01:39]}  Kc2 {[%clk 0:00:10]} 48. Rd2+ {[%clk 0:01:39]}  Kb1 {[%clk 0:00:09]} 49. Qe4+ {[%clk 0:01:40]}  Ka1 {[%clk 0:00:09]} 50. Rd1+ {[%clk 0:01:39]}  Qc1 {[%clk 0:00:08]} 51. Rxc1+ {[%clk 0:01:39]}  Ka2 {[%clk 0:00:08]} 52. Qb1+ {[%clk 0:01:39]}  Ka3 {[%clk 0:00:09]} 53. Rc3 {[%clk 0:01:40]}  Kb4 {[%clk 0:00:10]} 54. Qxb3+ {[%clk 0:01:40]}  Ka5 {[%clk 0:00:10]} 55. Rc2 {[%clk 0:01:41]}  Ka6 {[%clk 0:00:11]} 56. Ra2# {[%clk 0:01:42]} 1-0


[Site "https://www.chess.com"]

[Event "Titled Tuesday Blitz February 15 Early 2022"]
[White "Sarana, Alexey"]
[Black "Weetik, Vjacheslav"]
[WhiteFideId "24133795"]
[BlackFideId "4153472"]
[WhiteElo "2665"]
[BlackElo "2469"]
[Result "1-0"]
[Round "04"]
[TimeControl "180+1"]
[Date "2022.02.15"]
[WhiteClock "0:01:01"]
[BlackClock "0:00:01"]

1. d4 {[%clk 0:03:00]}  d5 {[%clk 0:02:57]} 2. c4 {[%clk 0:03:01]}  e6 {[%clk 0:02:57]} 3. Nc3 {[%clk 0:03:02]}  c6 {[%clk 0:02:57]} 4. Nf3 {[%clk 0:03:02]}  dxc4 {[%clk 0:02:57]} 5. g3 {[%clk 0:03:03]}  c5 {[%clk 0:02:47]} 6. Bg2 {[%clk 0:03:04]}  Nc6 {[%clk 0:02:47]} 7. Qa4 {[%clk 0:02:57]}  cxd4 {[%clk 0:02:00]} 8. Nxd4 {[%clk 0:02:57]}  Ne7 {[%clk 0:01:55]} 9. Ndb5 {[%clk 0:02:40]}  Nd5 {[%clk 0:01:40]} 10. Bxd5 {[%clk 0:02:40]}  exd5 {[%clk 0:01:38]} 11. Bf4 {[%clk 0:02:41]}  Be6 {[%clk 0:01:13]} 12. Nc7+ {[%clk 0:02:40]}  Kd7 {[%clk 0:01:03]} 13. O-O-O {[%clk 0:02:39]}  Bd6 {[%clk 0:00:59]} 14. N3xd5 {[%clk 0:02:36]}  Kc8 {[%clk 0:00:26]} 15. Bxd6 {[%clk 0:02:32]}  Qxd6 {[%clk 0:00:25]} 16. Nb6+ {[%clk 0:01:13]}  axb6 {[%clk 0:00:21]} 17. Qxa8+ {[%clk 0:01:14]}  Kxc7 {[%clk 0:00:21]} 18. Qxh8 {[%clk 0:01:14]}  Qe5 {[%clk 0:00:13]} 19. Qxh7 {[%clk 0:01:14]}  Bf5 {[%clk 0:00:07]} 20. Qh4 {[%clk 0:01:02]}  c3 {[%clk 0:00:06]} 21. Qf4 {[%clk 0:00:58]}  cxb2+ {[%clk 0:00:06]} 22. Kd2 {[%clk 0:00:59]}  Qxf4+ {[%clk 0:00:02]} 23. gxf4 {[%clk 0:01:00]}  Nb4 {[%clk 0:00:01]} 24. Rb1 {[%clk 0:01:00]}  Bxb1 {[%clk 0:00:01]} 25. Rxb1 {[%clk 0:01:01]} 1-0


[Site "https://www.chess.com"]

[Event "Titled Tuesday Blitz February 15 Early 2022"]
[White "Selbes, Tarik"]
[Black "Adury, Anant"]
[WhiteFideId "6302513"]
[BlackFideId "30964687"]
[WhiteElo "2290"]
[BlackElo "2332"]
[Result "1-0"]
[Round "04"]
[TimeControl "180+1"]
[Date "2022.02.15"]
[WhiteClock "0:01:46"]
[BlackClock "0:02:07"]

1. d4 {[%clk 0:03:00]}  Nf6 {[%clk 0:02:55]} 2. Nf3 {[%clk 0:03:00]}  e6 {[%clk 0:02:55]} 3. g3 {[%clk 0:02:59]}  c5 {[%clk 0:02:55]} 4. Bg2 {[%clk 0:03:00]}  cxd4 {[%clk 0:02:55]} 5. Nxd4 {[%clk 0:03:00]}  Nc6 {[%clk 0:02:55]} 6. O-O {[%clk 0:03:01]}  Bc5 {[%clk 0:02:55]} 7. Nb3 {[%clk 0:02:50]}  Bb6 {[%clk 0:02:53]} 8. Na3 {[%clk 0:02:48]}  h6 {[%clk 0:02:52]} 9. Nc4 {[%clk 0:02:48]}  O-O {[%clk 0:02:53]} 10. Nd6 {[%clk 0:02:42]}  Ne8 {[%clk 0:02:49]} 11. Bf4 {[%clk 0:02:41]}  Nxd6 {[%clk 0:02:49]} 12. Bxd6 {[%clk 0:02:41]}  Re8 {[%clk 0:02:49]} 13. c4 {[%clk 0:02:41]}  Bc7 {[%clk 0:02:48]} 14. c5 {[%clk 0:02:41]}  Bxd6 {[%clk 0:02:48]} 15. cxd6 {[%clk 0:02:35]}  b6 {[%clk 0:02:49]} 16. Nd4 {[%clk 0:02:33]}  Bb7 {[%clk 0:02:47]} 17. Nb5 {[%clk 0:02:33]}  Rc8 {[%clk 0:02:45]} 18. Rc1 {[%clk 0:02:31]}  Qf6 {[%clk 0:02:42]} 19. Nxa7 {[%clk 0:02:23]}  Nxa7 {[%clk 0:02:38]} 20. Bxb7 {[%clk 0:02:23]}  Rb8 {[%clk 0:02:38]} 21. Bf3 {[%clk 0:02:21]}  Nc6 {[%clk 0:02:33]} 22. Bxc6 {[%clk 0:02:20]}  dxc6 {[%clk 0:02:34]} 23. Rxc6 {[%clk 0:02:19]}  Qxb2 {[%clk 0:02:34]} 24. Qd3 {[%clk 0:02:03]}  Qxa2 {[%clk 0:02:32]} 25. Rfc1 {[%clk 0:02:01]}  Red8 {[%clk 0:02:10]} 26. Rc7 {[%clk 0:01:54]}  Qa3 {[%clk 0:02:07]} 27. Qxa3 {[%clk 0:01:46]} 1-0


[Site "https://www.chess.com"]

[Event "Titled Tuesday Blitz February 15 Early 2022"]
[White "Sharapov, Evgeny"]
[Black "Wartiovaara, Oliver"]
[WhiteFideId "14103133"]
[BlackFideId "513024"]
[WhiteElo "2367"]
[BlackElo "1971"]
[Result "1/2-1/2"]
[Round "04"]
[TimeControl "180+1"]
[Date "2022.02.15"]
[WhiteClock "0:01:14"]
[BlackClock "0:00:25"]

1. e4 {[%clk 0:02:58]}  c5 {[%clk 0:02:59]} 2. Nf3 {[%clk 0:02:58]}  d6 {[%clk 0:02:59]} 3. d4 {[%clk 0:02:57]}  cxd4 {[%clk 0:03:00]} 4. Nxd4 {[%clk 0:02:57]}  Nf6 {[%clk 0:03:01]} 5. f3 {[%clk 0:02:57]}  e5 {[%clk 0:03:00]} 6. Nb3 {[%clk 0:02:57]}  d5 {[%clk 0:02:58]} 7. Bg5 {[%clk 0:02:56]}  Be6 {[%clk 0:02:58]} 8. Bxf6 {[%clk 0:02:55]}  gxf6 {[%clk 0:02:58]} 9. exd5 {[%clk 0:02:55]}  Qxd5 {[%clk 0:02:59]} 10. Qxd5 {[%clk 0:02:55]}  Bxd5 {[%clk 0:03:00]} 11. Nc3 {[%clk 0:02:55]}  Be6 {[%clk 0:02:59]} 12. O-O-O {[%clk 0:02:50]}  Nc6 {[%clk 0:02:57]} 13. Bb5 {[%clk 0:02:47]}  Rc8 {[%clk 0:02:36]} 14. Na5 {[%clk 0:02:42]}  a6 {[%clk 0:02:15]} 15. Bxc6+ {[%clk 0:02:26]}  bxc6 {[%clk 0:02:15]} 16. Ne4 {[%clk 0:02:25]}  f5 {[%clk 0:01:44]} 17. Nd6+ {[%clk 0:02:20]}  Bxd6 {[%clk 0:01:43]} 18. Rxd6 {[%clk 0:02:20]}  Ke7 {[%clk 0:01:39]} 19. Rxc6 {[%clk 0:02:17]}  Rxc6 {[%clk 0:01:39]} 20. Nxc6+ {[%clk 0:02:17]}  Kd6 {[%clk 0:01:39]} 21. Nb4 {[%clk 0:02:16]}  a5 {[%clk 0:01:40]} 22. Rd1+ {[%clk 0:02:14]}  Kc5 {[%clk 0:01:35]} 23. Nd3+ {[%clk 0:02:13]}  Kd4 {[%clk 0:01:34]} 24. Re1 {[%clk 0:01:56]}  e4 {[%clk 0:01:31]} 25. Nf4 {[%clk 0:01:55]}  Rg8 {[%clk 0:01:13]} 26. Nxe6+ {[%clk 0:01:50]}  fxe6 {[%clk 0:01:14]} 27. fxe4 {[%clk 0:01:48]}  fxe4 {[%clk 0:01:01]} 28. Re2 {[%clk 0:01:48]}  e3 {[%clk 0:00:59]} 29. Kd1 {[%clk 0:01:43]}  Rb8 {[%clk 0:00:50]} 30. b3 {[%clk 0:01:39]}  Rf8 {[%clk 0:00:48]} 31. Ke1 {[%clk 0:01:38]}  h5 {[%clk 0:00:46]} 32. c4 {[%clk 0:01:35]}  Kd3 {[%clk 0:00:46]} 33. g3 {[%clk 0:01:31]}  a4 {[%clk 0:00:34]} 34. bxa4 {[%clk 0:01:28]}  Rb8 {[%clk 0:00:33]} 35. Kf1 {[%clk 0:01:20]}  Rf8+ {[%clk 0:00:32]} 36. Ke1 {[%clk 0:01:18]}  Rb8 {[%clk 0:00:32]} 37. Kf1 {[%clk 0:01:14]}  Rf8+ {[%clk 0:00:25]} 38. Ke1 {[%clk 0:01:14]} 1/2-1/2


[Site "https://www.chess.com"]

[Event "Titled Tuesday Blitz February 15 Early 2022"]
[White "Shukhman, Anna"]
[Black "Harish, Neeraj"]
[WhiteFideId "54180058"]
[BlackFideId "30958130"]
[WhiteElo "1628"]
[BlackElo "1545"]
[Result "1-0"]
[Round "04"]
[TimeControl "180+1"]
[Date "2022.02.15"]
[WhiteClock "0:00:03"]
[BlackClock "0:00:14"]

1. e4 {[%clk 0:03:00]}  c5 {[%clk 0:02:58]} 2. Nf3 {[%clk 0:03:00]}  Nc6 {[%clk 0:02:58]} 3. d4 {[%clk 0:02:59]}  cxd4 {[%clk 0:02:58]} 4. Nxd4 {[%clk 0:03:00]}  Nf6 {[%clk 0:02:59]} 5. Nc3 {[%clk 0:02:59]}  e5 {[%clk 0:02:59]} 6. Ndb5 {[%clk 0:02:58]}  d6 {[%clk 0:02:59]} 7. Nd5 {[%clk 0:02:58]}  Nxd5 {[%clk 0:02:59]} 8. exd5 {[%clk 0:02:59]}  Nb8 {[%clk 0:03:00]} 9. c4 {[%clk 0:02:52]}  Be7 {[%clk 0:03:00]} 10. Be2 {[%clk 0:02:50]}  Nd7 {[%clk 0:02:59]} 11. O-O {[%clk 0:02:50]}  O-O {[%clk 0:02:58]} 12. Be3 {[%clk 0:02:46]}  a6 {[%clk 0:02:58]} 13. Nc3 {[%clk 0:02:45]}  f5 {[%clk 0:02:57]} 14. f4 {[%clk 0:02:43]}  Bf6 {[%clk 0:02:54]} 15. Rc1 {[%clk 0:02:39]}  exf4 {[%clk 0:02:53]} 16. Bf2 {[%clk 0:02:11]}  b6 {[%clk 0:02:43]} 17. b4 {[%clk 0:02:09]}  g5 {[%clk 0:02:33]} 18. c5 {[%clk 0:02:04]}  bxc5 {[%clk 0:02:31]} 19. bxc5 {[%clk 0:02:01]}  Nxc5 {[%clk 0:02:32]} 20. Bxc5 {[%clk 0:01:49]}  dxc5 {[%clk 0:02:31]} 21. Na4 {[%clk 0:01:49]}  Bd4+ {[%clk 0:02:28]} 22. Kh1 {[%clk 0:01:48]}  Qd6 {[%clk 0:02:07]} 23. Rf3 {[%clk 0:01:36]}  Bb7 {[%clk 0:02:03]} 24. Bc4 {[%clk 0:01:22]}  g4 {[%clk 0:01:53]} 25. Rb3 {[%clk 0:01:18]}  Bxd5 {[%clk 0:01:47]} 26. Bxd5+ {[%clk 0:00:45]}  Qxd5 {[%clk 0:01:48]} 27. Nb6 {[%clk 0:00:44]}  Qe4 {[%clk 0:01:43]} 28. Nxa8 {[%clk 0:00:44]}  Rxa8 {[%clk 0:01:42]} 29. Rb6 {[%clk 0:00:42]}  f3 {[%clk 0:01:38]} 30. Qb3+ {[%clk 0:00:17]}  c4 {[%clk 0:01:12]} 31. Qxc4+ {[%clk 0:00:15]}  Kh8 {[%clk 0:01:12]} 32. Qf1 {[%clk 0:00:12]}  Rg8 {[%clk 0:00:57]} 33. Rbc6 {[%clk 0:00:10]}  g3 {[%clk 0:00:39]} 34. gxf3 {[%clk 0:00:09]}  Qh4 {[%clk 0:00:34]} 35. R6c2 {[%clk 0:00:08]}  Bf2 {[%clk 0:00:30]} 36. Qg2 {[%clk 0:00:08]}  f4 {[%clk 0:00:25]} 37. h3 {[%clk 0:00:08]}  h5 {[%clk 0:00:20]} 38. Rc7 {[%clk 0:00:07]}  Be3 {[%clk 0:00:18]} 39. Rd1 {[%clk 0:00:06]}  Rg7 {[%clk 0:00:16]} 40. Rd8+ {[%clk 0:00:06]}  Kh7 {[%clk 0:00:16]} 41. Rxg7+ {[%clk 0:00:04]}  Kxg7 {[%clk 0:00:16]} 42. Qb2+ {[%clk 0:00:04]}  Kg6 {[%clk 0:00:14]} 43. Qb6+ {[%clk 0:00:04]}  Kf5 {[%clk 0:00:14]} 44. Rd5# {[%clk 0:00:03]} 1-0


[Site "https://www.chess.com"]

[Event "Titled Tuesday Blitz February 15 Early 2022"]
[White "Shvedova, Alexandra"]
[Black "Avila Pavas, Santiago"]
[WhiteFideId "54154782"]
[BlackFideId "4437128"]
[WhiteElo "1920"]
[BlackElo "2242"]
[Result "1-0"]
[Round "04"]
[TimeControl "180+1"]
[Date "2022.02.15"]
[WhiteClock "0:00:07"]
[BlackClock "0:00:15"]

1. e4 {[%clk 0:03:00]}  Nf6 {[%clk 0:03:00]} 2. e5 {[%clk 0:03:00]}  Nd5 {[%clk 0:03:01]} 3. d4 {[%clk 0:03:01]}  d6 {[%clk 0:03:02]} 4. c4 {[%clk 0:03:01]}  Nb6 {[%clk 0:03:02]} 5. exd6 {[%clk 0:03:02]}  cxd6 {[%clk 0:03:03]} 6. Nc3 {[%clk 0:03:01]}  g6 {[%clk 0:03:04]} 7. Be3 {[%clk 0:03:02]}  Bg7 {[%clk 0:03:04]} 8. Rc1 {[%clk 0:03:02]}  O-O {[%clk 0:03:05]} 9. b3 {[%clk 0:03:02]}  e5 {[%clk 0:03:06]} 10. dxe5 {[%clk 0:03:00]}  dxe5 {[%clk 0:03:07]} 11. Qxd8 {[%clk 0:02:59]}  Rxd8 {[%clk 0:03:08]} 12. c5 {[%clk 0:02:59]}  N6d7 {[%clk 0:03:08]} 13. Nb5 {[%clk 0:02:33]}  Nc6 {[%clk 0:03:07]} 14. Nd6 {[%clk 0:02:21]}  e4 {[%clk 0:03:03]} 15. Nxe4 {[%clk 0:02:16]}  Nde5 {[%clk 0:03:04]} 16. Nd6 {[%clk 0:01:55]}  Nb4 {[%clk 0:03:03]} 17. Rd1 {[%clk 0:01:40]}  Nxa2 {[%clk 0:02:49]} 18. Bd4 {[%clk 0:01:24]}  b6 {[%clk 0:02:21]} 19. f4 {[%clk 0:01:12]}  Ng4 {[%clk 0:01:52]} 20. Bc4 {[%clk 0:01:07]}  bxc5 {[%clk 0:01:41]} 21. Bxf7+ {[%clk 0:00:59]}  Kf8 {[%clk 0:01:37]} 22. Bxg7+ {[%clk 0:00:51]}  Kxg7 {[%clk 0:01:37]} 23. Ne8+ {[%clk 0:00:45]}  Rxe8+ {[%clk 0:01:26]} 24. Bxe8 {[%clk 0:00:46]}  Be6 {[%clk 0:01:27]} 25. Bc6 {[%clk 0:00:31]}  Rb8 {[%clk 0:01:23]} 26. Nf3 {[%clk 0:00:23]}  Ne3 {[%clk 0:00:45]} 27. Rd2 {[%clk 0:00:22]}  Nb4 {[%clk 0:00:45]} 28. Kf2 {[%clk 0:00:20]}  Nf5 {[%clk 0:00:44]} 29. Re1 {[%clk 0:00:19]}  Bxb3 {[%clk 0:00:44]} 30. Rd7+ {[%clk 0:00:19]}  Kh6 {[%clk 0:00:43]} 31. Ng5 {[%clk 0:00:18]}  Bg8 {[%clk 0:00:43]} 32. g4 {[%clk 0:00:16]}  Nxc6 {[%clk 0:00:20]} 33. gxf5 {[%clk 0:00:16]}  Rb2+ {[%clk 0:00:20]} 34. Kg1 {[%clk 0:00:16]}  Nd4 {[%clk 0:00:15]} 35. fxg6 {[%clk 0:00:15]}  hxg6 {[%clk 0:00:15]} 36. Rd8 {[%clk 0:00:12]}  Ne2+ {[%clk 0:00:09]} 37. Rxe2 {[%clk 0:00:11]}  Rxe2 {[%clk 0:00:10]} 38. Rxg8 {[%clk 0:00:12]}  c4 {[%clk 0:00:10]} 39. Rc8 {[%clk 0:00:12]}  Rc2 {[%clk 0:00:10]} 40. Rc7 {[%clk 0:00:11]}  Kh5 {[%clk 0:00:11]} 41. Kf1 {[%clk 0:00:09]}  Kg4 {[%clk 0:00:11]} 42. Ke1 {[%clk 0:00:08]}  Kxf4 {[%clk 0:00:11]} 43. Ne6+ {[%clk 0:00:08]}  Kf3 {[%clk 0:00:11]} 44. Nd4+ {[%clk 0:00:08]}  Kg2 {[%clk 0:00:12]} 45. Nxc2 {[%clk 0:00:09]}  Kxh2 {[%clk 0:00:13]} 46. Rxc4 {[%clk 0:00:09]}  g5 {[%clk 0:00:13]} 47. Ra4 {[%clk 0:00:09]}  Kh3 {[%clk 0:00:14]} 48. Rxa7 {[%clk 0:00:09]}  g4 {[%clk 0:00:14]} 49. Ne3 {[%clk 0:00:09]}  Kh2 {[%clk 0:00:14]} 50. Kf1 {[%clk 0:00:07]}  g3 {[%clk 0:00:15]} 51. Rh7# {[%clk 0:00:07]} 1-0


[Site "https://www.chess.com"]

[Event "Titled Tuesday Blitz February 15 Early 2022"]
[White "Singh, Ojasva"]
[Black "Ianov, Viktor"]
[WhiteFideId "25681958"]
[BlackFideId "14102730"]
[WhiteElo "1741"]
[BlackElo "2215"]
[Result "0-1"]
[Round "04"]
[TimeControl "180+1"]
[Date "2022.02.15"]
[WhiteClock "0:00:02"]
[BlackClock "0:01:14"]

1. e4 {[%clk 0:03:00]}  d6 {[%clk 0:02:59]} 2. d4 {[%clk 0:03:00]}  Nf6 {[%clk 0:02:59]} 3. Nc3 {[%clk 0:03:00]}  c6 {[%clk 0:02:59]} 4. a4 {[%clk 0:02:59]}  Qa5 {[%clk 0:02:59]} 5. Bd2 {[%clk 0:02:57]}  e5 {[%clk 0:02:59]} 6. Nf3 {[%clk 0:02:56]}  Bg4 {[%clk 0:02:57]} 7. Be2 {[%clk 0:02:24]}  Nbd7 {[%clk 0:02:56]} 8. O-O {[%clk 0:02:11]}  Qc7 {[%clk 0:02:47]} 9. Be3 {[%clk 0:02:08]}  Be7 {[%clk 0:02:46]} 10. Nd2 {[%clk 0:02:06]}  Bxe2 {[%clk 0:02:45]} 11. Qxe2 {[%clk 0:02:07]}  O-O {[%clk 0:02:45]} 12. Nc4 {[%clk 0:02:06]}  Rfe8 {[%clk 0:02:44]} 13. dxe5 {[%clk 0:01:54]}  dxe5 {[%clk 0:02:43]} 14. Rfd1 {[%clk 0:01:51]}  Bb4 {[%clk 0:02:40]} 15. f3 {[%clk 0:01:48]}  a5 {[%clk 0:02:36]} 16. Qf2 {[%clk 0:01:40]}  h6 {[%clk 0:02:33]} 17. Rd3 {[%clk 0:01:38]}  Reb8 {[%clk 0:02:18]} 18. Nb6 {[%clk 0:01:35]}  Nxb6 {[%clk 0:02:13]} 19. Bxb6 {[%clk 0:01:35]}  Qe7 {[%clk 0:02:13]} 20. Rad1 {[%clk 0:01:34]}  Re8 {[%clk 0:02:11]} 21. Ne2 {[%clk 0:01:17]}  Qe6 {[%clk 0:02:08]} 22. Ng3 {[%clk 0:01:07]}  g6 {[%clk 0:02:07]} 23. c3 {[%clk 0:00:50]}  Bf8 {[%clk 0:02:06]} 24. Bc5 {[%clk 0:00:50]}  Be7 {[%clk 0:01:55]} 25. Bxe7 {[%clk 0:00:44]}  Qxe7 {[%clk 0:01:52]} 26. Qb6 {[%clk 0:00:43]}  Ra6 {[%clk 0:01:47]} 27. Qb3 {[%clk 0:00:41]}  Kg7 {[%clk 0:01:45]} 28. Nf1 {[%clk 0:00:40]}  Qc7 {[%clk 0:01:42]} 29. Ne3 {[%clk 0:00:31]}  Rb8 {[%clk 0:01:36]} 30. Qc4 {[%clk 0:00:14]}  b5 {[%clk 0:01:36]} 31. axb5 {[%clk 0:00:14]}  Rxb5 {[%clk 0:01:36]} 32. R1d2 {[%clk 0:00:14]}  a4 {[%clk 0:01:32]} 33. Nd5 {[%clk 0:00:11]}  Qa7+ {[%clk 0:01:31]} 34. Ne3 {[%clk 0:00:11]}  Qb6 {[%clk 0:01:28]} 35. Kf2 {[%clk 0:00:07]}  Rxb2 {[%clk 0:01:23]} 36. Rxb2 {[%clk 0:00:07]}  Qxb2+ {[%clk 0:01:23]} 37. Kg3 {[%clk 0:00:06]}  Qb5 {[%clk 0:01:21]} 38. Qxb5 {[%clk 0:00:04]}  cxb5 {[%clk 0:01:20]} 39. Nd5 {[%clk 0:00:03]}  Nxd5 {[%clk 0:01:18]} 40. Rxd5 {[%clk 0:00:03]}  a3 {[%clk 0:01:18]} 41. Rd1 {[%clk 0:00:03]}  a2 {[%clk 0:01:17]} 42. Ra1 {[%clk 0:00:04]}  Kf6 {[%clk 0:01:17]} 43. Kf2 {[%clk 0:00:04]}  Ke6 {[%clk 0:01:17]} 44. Ke3 {[%clk 0:00:04]}  Kd6 {[%clk 0:01:18]} 45. Kd3 {[%clk 0:00:04]}  Kc5 {[%clk 0:01:18]} 46. g3 {[%clk 0:00:02]}  h5 {[%clk 0:01:17]} 47. Kc2 {[%clk 0:00:01]}  Kc4 {[%clk 0:01:16]} 48. Kb2 {[%clk 0:00:02]}  Ra4 {[%clk 0:01:16]} 49. h3 {[%clk 0:00:01]}  g5 {[%clk 0:01:16]} 50. h4 {[%clk 0:00:01]}  gxh4 {[%clk 0:01:15]} 51. gxh4 {[%clk 0:00:02]}  f6 {[%clk 0:01:15]} 52. Rd1 {[%clk 0:00:02]}  a1=Q+ {[%clk 0:01:14]} 53. Rxa1 {[%clk 0:00:02]}  Rxa1 {[%clk 0:01:14]} 0-1


[Site "https://www.chess.com"]